bitfinex/quotes_ETHUSD_20220111
["timestamp","ask_amount","ask_price","bid_price","bid_amount"]
[1641873083586,0.00113685,3121.4,3121.3,5.55910887]
[1641873083984,0.00113685,3121.4,3121.3,5.51671438]
[1641873084185,0.00113685,3121.4,3121.3,1.84108]
[1641873084586,0.00113685,3121.4,3121.3,0.84108]
[1641873086819,0.00113685,3121.4,3121.3,0.54108]
[1641873089565,0.00113685,3121.4,3121.3,0.461]
[1641873090367,0.00113685,3121.4,3121.3,4.02413369]
[1641873090564,0.00113685,3121.4,3121.3,5.32413369]
[1641873090865,0.00113685,3121.4,3121.3,1.461]
[1641873091069,0.00113685,3121.4,3121.3,0.461]
[1641873096415,4.00113685,3121.4,3121.3,0.461]
[1641873096669,4.00113685,3121.4,3120.8,0.00113684]
[1641873097062,4.00113685,3121.4,3120.7,0.00284212]
[1641873097764,4.00113685,3121.4,3120.7,0.30284212]
[1641873097962,1.5372967,3121.0,3120.7,0.30284212]
[1641873098165,4.00113685,3121.4,3120.8,0.00227369]
[1641873098166,0.67888169,3120.9,3120.8,0.00227369]
[1641873098365,0.67888169,3120.9,3120.8,3.75227369]
[1641873098567,0.67888169,3120.9,3120.8,5.05]
[1641873098866,0.67888169,3120.9,3120.8,5.05227369]
[1641873099066,0.67888169,3120.9,3120.8,1.26997369]
[1641873099566,0.67888169,3120.9,3120.8,0.26997369]
[1641873099768,0.67888169,3120.9,3120.8,0.00227369]
[1641873100166,0.67888169,3120.9,3120.4,0.00454739]
[1641873100420,1.34280738,3120.8,3120.4,0.00454739]
[1641873102020,0.67888169,3120.9,3120.4,0.00454739]
[1641873104072,1.19546968,3120.6,3120.4,0.00454739]
[1641873113768,7.6497,3120.5,3120.4,0.00454739]
[1641873115417,10.37552139,3120.5,3120.4,0.00454739]
[1641873116015,10.37552139,3120.5,3119.4,0.0801]
[1641873116016,5.0,3120.4,3119.4,0.0801]
[1641873116216,5.0,3120.4,3119.3,0.38013]
[1641873116414,6.2241,3120.4,3119.5,0.00511581]
[1641873116615,6.2241,3120.4,3119.6,0.08011]
[1641873117015,0.72978361,3120.3,3119.7,0.00397896]
[1641873119367,0.80989361,3120.3,3119.7,0.00397896]
[1641873119773,2.0247788,3119.8,3119.7,0.00397896]
[1641873120369,3.9262,3120.3,3119.7,0.00397896]
[1641873120969,3.9262,3120.3,3119.6,0.08465739]
[1641873121171,3.9262,3120.3,3119.7,0.00397896]
[1641873121572,0.86646503,3119.9,3119.7,0.00397896]
[1641873126422,0.86646503,3119.9,3119.6,0.00454739]
[1641873126666,0.86646503,3119.9,3119.6,0.08467739]
[1641873127065,0.86646503,3119.9,3119.7,0.00397896]
[1641873128868,1.48036786,3120.1,3119.7,0.00397896]
[1641873130724,1.48036786,3120.1,3119.6,0.00454739]
[1641873131325,0.83392023,3119.9,3119.6,0.00454739]
[1641873132325,1.48036786,3120.1,3119.6,0.00454739]
[1641873133828,0.782752,3120.0,3119.6,0.00454739]
[1641873136475,5.00845091,3120.0,3119.6,0.00454739]
[1641873136677,6.19945091,3120.0,3119.6,0.00454739]
[1641873136873,6.19945091,3120.0,3118.8,0.08013]
[1641873136874,6.19945091,3120.0,3118.9,0.00852635]
[1641873137076,0.08014,3119.9,3118.9,0.00852635]
[1641873137474,3.30344,3119.9,3118.8,0.00909477]
[1641873137676,5.24528147,3119.8,3118.7,0.0096632]
[1641873137912,1.23166754,3118.8,3118.7,0.0096632]
[1641873138715,0.81050096,3118.7,3118.5,0.01080004]
[1641873140415,0.81050096,3118.7,3118.4,0.01136847]
[1641873140615,0.81050096,3118.7,3118.0,0.01364216]
[1641873140817,6.53870096,3118.7,3118.0,0.01364216]
[1641873141017,6.53870096,3118.7,3117.8,0.01477901]
[1641873141219,6.53870096,3118.7,3117.9,0.08017]
[1641873141416,6.53870096,3118.7,3117.8,0.01477901]
[1641873141674,0.08017,3118.6,3118.0,0.01364216]
[1641873141972,6.61887096,3118.7,3118.1,0.01307374]
[1641873142371,4.3315873,3118.6,3117.7,0.01534743]
[1641873142572,0.70015045,3117.8,3117.7,0.01534743]
[1641873142972,6.9691,3118.6,3117.7,3.51534743]
[1641873143476,6.9691,3118.6,3117.8,0.01477901]
[1641873143674,0.08017,3119.2,3117.9,0.47357826]
[1641873143875,1.33846857,3119.1,3118.0,3.73135149]
[1641873144073,0.84020879,3118.6,3118.1,1.461]
[1641873144272,0.84020879,3118.6,3118.1,1.47407374]
[1641873144475,0.84020879,3118.6,3118.2,0.01250531]
[1641873144674,0.84020879,3118.6,3118.3,0.461]
[1641873145074,0.84020879,3118.6,3118.4,0.01136847]
[1641873145311,1.12244453,3118.5,3118.4,0.47236847]
[1641873145513,0.84020879,3118.6,3118.4,0.47236847]
[1641873145712,1.1743,3119.1,3118.4,0.47236847]
[1641873145913,1.1743,3119.1,3118.5,0.01080004]
[1641873146117,1.1743,3119.1,3118.5,3.57556728]
[1641873146614,0.78624873,3119.2,3118.6,1.47123162]
[1641873146819,0.78624873,3119.2,3118.7,0.08014]
[1641873147013,0.78624873,3119.2,3118.8,0.461]
[1641873147215,0.78624873,3119.2,3118.8,0.47009477]
[1641873147413,0.78624873,3119.2,3118.9,0.00852635]
[1641873148419,0.01437415,3119.1,3118.9,0.00852635]
[1641873148619,5.81255075,3119.0,3117.5,0.54114]
[1641873148814,5.81255075,3119.0,3118.1,0.00454739]
[1641873148815,0.08017,3118.9,3118.1,0.00454739]
[1641873149072,1.29557,3118.9,3118.1,0.00454739]
[1641873149366,0.72954861,3118.3,3118.1,0.00454739]
[1641873149667,7.2808,3118.8,3118.1,0.00454739]
[1641873150065,7.2808,3118.8,3117.7,0.00682108]
[1641873150267,7.2808,3118.8,3117.8,0.08017]
[1641873150666,7.2808,3118.8,3117.9,0.00568424]
[1641873150867,0.83109398,3118.4,3117.9,0.00568424]
[1641873151273,0.83109398,3118.4,3117.6,0.08017]
[1641873151274,0.83109398,3118.4,3117.7,0.00682108]
[1641873151471,0.83109398,3118.4,3117.8,0.08017]
[1641873151669,0.83109398,3118.4,3117.7,0.00682108]
[1641873151867,0.83109398,3118.4,3117.9,0.00568424]
[1641873152069,0.83109398,3118.4,3118.1,0.00734653]
[1641873152468,0.83109398,3118.4,3118.2,0.00397896]
[1641873153115,1.1978,3118.5,3118.2,0.00397896]
[1641873156589,4.1723,3118.8,3118.2,0.00397896]
[1641873157172,4.1723,3118.8,3118.4,0.00733329]
[1641873157472,4.1723,3118.8,3118.5,0.00227369]
[1641873157671,1.36792589,3118.7,3118.5,0.00227369]
[1641873158274,0.89052465,3118.6,3118.5,0.00227369]
[1641873159772,3.34052465,3118.6,3118.5,0.00227369]
[1641873160420,4.57882465,3118.6,3118.5,0.00227369]
[1641873162020,8.65082437,3118.6,3118.5,0.00227369]
[1641873162217,8.65082437,3118.6,3118.5,0.00960257]
[1641873162616,4.57882465,3118.6,3118.5,0.00960257]
[1641873163219,2.12882465,3118.6,3118.5,0.00960257]
[1641873164264,6.21749297,3118.6,3118.5,0.00960257]
[1641873164467,6.29764297,3118.6,3118.5,0.00960257]
[1641873165465,6.21749297,3118.6,3118.5,0.00960257]
[1641873166665,6.29764297,3118.6,3118.5,0.00960257]
[1641873168316,6.59764297,3118.6,3118.5,0.00960257]
[1641873168615,6.29764297,3118.6,3118.5,0.00960257]
[1641873168818,6.59764297,3118.6,3118.5,0.00960257]
[1641873169218,6.29764297,3118.6,3118.5,0.00960257]
[1641873172084,2.20897465,3118.6,3118.5,0.00960257]
[1641873172683,5.50897465,3118.6,3118.5,0.00960257]
[1641873173287,9.58088032,3118.6,3118.5,0.00960257]
[1641873179471,5.50897465,3118.6,3118.5,0.00960257]
[1641873180870,8.23618266,3118.6,3118.5,0.00960257]
[1641873183122,4.04565801,3118.6,3118.5,0.00960257]
[1641873183322,2.72720801,3118.6,3118.5,0.00960257]
[1641873184320,0.89367759,3118.6,3118.5,0.00960257]
[1641873185121,1.32728162,3118.7,3118.5,0.00960257]
[1641873185522,1.32728162,3118.7,3118.6,0.00170527]
[1641873186669,2.14332534,3118.7,3118.6,0.00170527]
[1641873186870,4.87022918,3118.7,3118.6,0.00170527]
[1641873187077,4.87022918,3118.7,3118.6,0.00902973]
[1641873187471,2.14332534,3118.7,3118.6,0.00902973]
[1641873187671,1.32728162,3118.7,3118.6,0.00902973]
[1641873190431,2.11493641,3118.7,3118.6,0.00902973]
[1641873190625,4.84185247,3118.7,3118.6,0.00902973]
[1641873191325,2.11493641,3118.7,3118.6,0.00902973]
[1641873192726,4.84201623,3118.7,3118.6,0.00902973]
[1641873193928,2.11493641,3118.7,3118.6,0.00902973]
[1641873194171,6.32907924,3118.7,3118.6,0.00902973]
[1641873194368,5.16493641,3118.7,3118.6,0.00902973]
[1641873194571,9.28124416,3118.7,3118.6,0.00902973]
[1641873194969,12.00849288,3118.7,3118.6,0.00902973]
[1641873195168,12.09809179,3118.7,3118.6,0.00902973]
[1641873195368,12.12619392,3118.7,3118.6,0.00902973]
[1641873195571,7.89218513,3118.7,3118.6,0.00902973]
[1641873195771,13.12308066,3118.7,3118.6,0.00902973]
[1641873196372,9.02898513,3118.7,3118.6,0.00902973]
[1641873196872,13.09195572,3118.7,3118.6,0.00902973]
[1641873197071,9.02898513,3118.7,3118.6,0.00902973]
[1641873198335,13.1746601,3118.7,3118.6,0.00902973]
[1641873198538,13.7746601,3118.7,3118.6,0.00902973]
[1641873198738,14.2548101,3118.7,3118.6,0.00902973]
[1641873199339,15.88272001,3118.7,3118.6,0.00902973]
[1641873200138,16.35922426,3118.7,3118.6,0.00902973]
[1641873200540,14.73131435,3118.7,3118.6,0.00902973]
[1641873201041,13.73131435,3118.7,3118.6,0.00902973]
[1641873201440,13.2548101,3118.7,3118.6,0.00902973]
[1641873201668,9.10913513,3118.7,3118.6,0.00902973]
[1641873203870,13.29793519,3118.7,3118.6,0.00902973]
[1641873204070,9.10913513,3118.7,3118.6,0.00902973]
[1641873204271,13.2836305,3118.7,3118.6,0.00902973]
[1641873204571,9.10913513,3118.7,3118.6,0.00902973]
[1641873205620,13.32152643,3118.7,3118.6,0.00902973]
[1641873205823,9.10913513,3118.7,3118.6,0.00902973]
[1641873207125,2.80739872,3118.7,3118.6,2.80902973]
[1641873207326,2.72724872,3118.7,3118.6,3.27002973]
[1641873207522,2.72724872,3118.7,3118.6,4.95017973]
[1641873207721,2.72724872,3118.7,3118.6,3.95017973]
[1641873207922,2.72724872,3118.7,3118.6,3.65017973]
[1641873208125,2.72724872,3119.1,3118.6,4.95017973]
[1641873208328,1.34339319,3118.9,3118.7,0.08014]
[1641873208624,1.34339319,3118.9,3118.8,0.461]
[1641873209669,1.34339319,3118.9,3118.8,0.54114]
[1641873210068,4.07064191,3118.9,3118.8,0.54114]
[1641873210667,1.34339319,3118.9,3118.8,0.761]
[1641873211069,1.34339319,3118.9,3118.8,0.461]
[1641873211568,1.34339319,3118.9,3118.8,0.761]
[1641873212168,4.070356,3118.9,3118.8,1.06831564]
[1641873212368,4.070356,3118.9,3118.8,0.76831564]
[1641873212567,4.070356,3118.9,3118.8,0.46831564]
[1641873213822,1.34339319,3118.9,3118.8,0.46831564]
[1641873219369,0.7127792,3119.1,3118.8,0.46831564]
[1641873220428,2.72684028,3119.0,3118.8,0.46831564]
[1641873221526,1.11409764,3119.0,3118.8,0.46831564]
[1641873224372,2.72693631,3118.9,3118.8,0.46831564]
[1641873225978,2.72693631,3118.9,3118.8,0.41831564]
[1641873226977,2.72693631,3118.9,3118.8,0.00731564]
[1641873227276,3.89273631,3118.9,3118.8,0.00731564]
[1641873229826,1.1658,3118.9,3118.8,0.00731564]
[1641873230228,1.11409764,3119.0,3118.8,0.00731564]
[1641873231871,1.11409764,3119.0,3118.6,0.03859249]
[1641873232070,1.11409764,3119.0,3118.5,0.761]
[1641873232271,0.00113685,3118.9,3118.5,0.461]
[1641873232771,2.72808575,3118.9,3118.5,0.461]
[1641873233971,0.00113685,3118.9,3118.5,0.461]
[1641873234777,2.7280912,3118.9,3118.2,0.08015]
[1641873235175,0.00113685,3118.9,3118.3,0.00227369]
[1641873235629,1.14750817,3118.4,3118.3,0.00227369]
[1641873237227,1.14750817,3118.4,3118.3,0.00869694]
[1641873239772,5.89750817,3118.4,3118.3,0.00869694]
[1641873240170,8.62503921,3118.4,3118.3,0.00869694]
[1641873240572,3.87503921,3118.4,3118.3,0.00869694]
[1641873241779,1.14750817,3118.4,3118.3,0.00869694]
[1641873250830,4.69750817,3118.4,3118.3,0.00869694]
[1641873251428,3.87491527,3118.4,3118.3,0.00869694]
[1641873252726,3.87491527,3118.4,3118.3,3.20869694]
[1641873253529,3.87491527,3118.4,3118.3,3.40869694]
[1641873254375,3.87491527,3118.4,3118.3,3.00909694]
[1641873255977,3.87491527,3118.4,3118.3,3.30909694]
[1641873256377,3.87491527,3118.4,3118.3,3.00909694]
[1641873256680,1.14750817,3118.4,3118.3,3.00909694]
[1641873257078,1.14750817,3118.4,3118.3,3.30909694]
[1641873257278,3.87485816,3118.4,3118.3,3.31659073]
[1641873258625,1.14750817,3118.4,3118.3,3.31659073]
[1641873259428,1.14750817,3118.4,3118.3,3.01659073]
[1641873261028,3.87473239,3118.4,3118.3,3.01659073]
[1641873264678,3.95490239,3118.4,3118.3,3.01659073]
[1641873265326,3.87473239,3118.4,3118.3,3.01659073]
[1641873267831,3.95490239,3118.4,3118.3,3.01659073]
[1641873268524,3.87473239,3118.4,3118.3,3.01659073]
[1641873270676,8.04071068,3118.4,3117.2,0.01291001]
[1641873270879,0.01208039,3117.7,3116.0,1.69550845]
[1641873271080,0.08019,3117.6,3117.3,0.00568424]
[1641873271476,0.34397754,3116.4,3116.3,0.01136847]
[1641873271680,0.34397754,3116.4,3116.1,0.01250532]
[1641873272277,0.34397754,3116.4,3115.8,5.11971377]
[1641873272476,0.00113685,3116.3,3115.8,5.11971377]
[1641873272676,0.936716,3116.2,3115.9,0.00113684]
[1641873273132,0.936716,3116.2,3115.8,0.00170527]
[1641873273734,1.16459751,3117.2,3115.9,5.75]
[1641873273735,1.1339,3117.2,3115.9,5.75]
[1641873274035,0.00341054,3116.9,3116.3,0.8022]
[1641873274228,0.00341054,3116.9,3116.3,1.2632]
[1641873274432,0.00284212,3116.8,3116.4,0.3]
[1641873274633,0.92836282,3116.5,3116.4,0.3]
[1641873274831,0.92836282,3116.5,3116.3,0.8022]
[1641873275032,0.92949967,3116.5,3116.0,0.30170527]
[1641873275232,0.92949967,3116.5,3116.0,0.00170527]
[1641873275432,0.92949967,3116.5,3116.1,0.00113685]
[1641873275641,0.92949967,3116.5,3116.0,0.00170527]
[1641873276033,0.92949967,3116.5,3116.0,1.00170527]
[1641873276235,0.92949967,3116.5,3116.0,0.00170527]
[1641873276434,0.92949967,3116.5,3116.1,0.00113685]
[1641873276675,0.92949967,3116.5,3116.0,0.00170527]
[1641873276878,0.92949967,3116.5,3116.1,0.00113685]
[1641873277073,0.92949967,3116.5,3116.0,1.00170527]
[1641873277275,0.93225009,3116.5,3116.2,0.00955271]
[1641873279779,0.00388727,3116.5,3116.3,0.461]
[1641873280081,0.00113685,3116.5,3116.4,9.56694742]
[1641873280331,14.8572,3117.6,3116.5,5.75]
[1641873280533,14.8572,3117.6,3116.7,1.604]
[1641873280735,0.76286033,3117.1,3116.8,3.98627754]
[1641873280931,0.76286033,3117.1,3116.8,4.28627754]
[1641873281134,0.00284211,3117.0,3116.9,1.0]
[1641873281332,0.00284211,3117.0,3116.9,0.461]
[1641873282334,0.00284211,3117.0,3116.9,7.13689177]
[1641873282533,0.00284211,3117.0,3116.9,12.53689177]
[1641873282736,0.00284211,3117.0,3116.9,4.08689177]
[1641873282934,0.00284211,3117.0,3116.9,0.461]
[1641873283132,0.00284211,3117.0,3116.9,3.411]
[1641873283533,0.00284211,3117.0,3116.9,3.711]
[1641873283735,0.00284211,3117.0,3116.9,0.461]
[1641873284173,0.00284211,3117.0,3116.9,3.661]
[1641873284371,0.00284211,3117.0,3116.9,8.461]
[1641873284573,0.00284211,3117.0,3116.9,3.961]
[1641873285573,0.00284211,3117.0,3116.9,7.361]
[1641873285773,0.00284211,3117.0,3116.9,3.661]
[1641873285978,0.00284211,3117.0,3116.9,7.061]
[1641873286174,0.00284211,3117.0,3116.9,3.961]
[1641873286374,0.00284211,3117.0,3116.9,3.661]
[1641873287275,0.00628381,3117.0,3116.9,3.66778564]
[1641873297331,0.00628381,3117.0,3116.9,3.67117846]
[1641873303928,0.08647381,3117.0,3116.9,3.67117846]
[1641873304133,3.30628381,3117.0,3116.9,3.67117846]
[1641873304332,3.60628381,3117.0,3116.9,3.21017846]
[1641873304530,3.30628381,3117.0,3116.9,3.21017846]
[1641873305330,6.03469197,3117.0,3116.9,3.21017846]
[1641873305629,6.11488197,3117.0,3116.9,3.21017846]
[1641873306029,3.38647381,3117.0,3116.9,3.21017846]
[1641873308185,5.8,3116.9,3115.7,0.461]
[1641873308385,0.08021,3116.8,3115.7,0.461]
[1641873308692,0.00113684,3116.7,3115.8,0.00397897]
[1641873308885,1.38356448,3116.5,3115.8,0.00397897]
[1641873309085,0.08021,3116.4,3115.8,0.00397897]
[1641873309484,2.04079399,3115.9,3115.8,0.00397897]
[1641873309687,2.72953389,3116.7,3116.0,0.80223]
[1641873309688,0.08022,3116.6,3116.0,0.80223]
[1641873310085,0.08022,3116.6,3116.1,0.4632737]
[1641873310534,0.08022,3116.6,3116.2,0.00170527]
[1641873310734,2.02240917,3116.5,3116.2,0.00170527]
[1641873312035,2.02240917,3116.5,3116.2,3.48934623]
[1641873312335,2.02584719,3116.5,3116.4,0.01535605]
[1641873312534,2.02584719,3116.5,3116.4,0.47635605]
[1641873313537,0.83775472,3116.5,3116.4,0.47635605]
[1641873314780,2.30737585,3116.5,3116.4,0.47635605]
[1641873317083,2.30622984,3116.5,3116.4,0.47635605]
[1641873328244,0.00229201,3116.5,3116.4,0.47635605]
[1641873332287,0.00342885,3116.7,3116.4,0.47635605]
[1641873333337,1.10367176,3116.6,3116.4,0.47635605]
[1641873334139,0.00342885,3116.7,3116.5,3.79880525]
[1641873334341,0.00342885,3116.7,3116.6,3.061]
[1641873335939,1.36253457,3116.7,3116.6,0.461]
[1641873337185,1.36253457,3116.7,3116.6,0.4763207]
[1641873338686,1.36139773,3116.7,3116.6,0.4763207]
[1641873339486,4.08973553,3116.7,3116.6,0.4763207]
[1641873340732,1.36139773,3116.7,3116.6,0.4763207]
[1641873343636,4.089726,3116.7,3116.6,0.4763207]
[1641873344087,1.36139773,3116.7,3116.6,0.4763207]
[1641873347589,4.0897628,3116.7,3116.6,0.4763207]
[1641873347831,4.0897628,3116.7,3116.6,0.0153207]
[1641873349937,4.0897628,3116.7,3116.6,0.01302869]
[1641873349938,4.08747079,3116.7,3116.6,0.01302869]
[1641873352182,4.08747079,3116.7,3116.0,0.4763207]
[1641873352584,4.08747079,3116.7,3116.1,0.0022737]
[1641873353182,1.35910572,3116.7,3116.1,0.0022737]
[1641873353984,2.72842651,3116.6,3116.1,0.0022737]
[1641873354388,2.19757822,3116.2,3116.1,0.0022737]
[1641873357245,2.19757822,3116.2,3116.1,0.01768277]
[1641873359489,4.92622542,3116.2,3116.1,0.01768277]
[1641873360490,2.19757822,3116.2,3116.1,0.01768277]
[1641873360691,6.0018143,3117.2,3116.1,0.47868277]
[1641873360692,5.8007532,3117.2,3116.1,0.47868277]
[1641873360891,5.8007532,3117.2,3116.2,4.15120212]
[1641873361092,0.00170527,3116.8,3116.3,1.461]
[1641873361295,0.00170527,3116.8,3116.3,1.46213685]
[1641873361490,0.00113684,3116.7,3116.3,1.46213685]
[1641873361691,0.00113684,3116.7,3116.3,0.46213685]
[1641873361990,2.29008577,3116.6,3116.3,0.46213685]
[1641873362191,2.29008577,3116.6,3116.4,0.01535605]
[1641873362391,2.29008577,3116.6,3116.4,0.47635605]
[1641873363441,2.29008577,3116.6,3116.4,0.42670074]
[1641873364543,2.29008577,3116.6,3116.3,0.00113685]
[1641873371936,1.41913781,3116.6,3116.3,0.00113685]
[1641873373635,0.74526039,3116.5,3116.3,0.00113685]
[1641873374887,1.18174211,3117.0,3116.3,0.00113685]
[1641873375190,0.00227369,3116.9,3116.4,0.461]
[1641873375387,0.08021,3117.2,3117.0,0.16265829]
[1641873375786,0.00113685,3117.1,3117.0,0.16265829]
[1641873376991,2.72902302,3117.1,3117.0,0.16265829]
[1641873377191,2.73545753,3117.1,3117.0,0.16265829]
[1641873380937,2.73545753,3117.1,3116.9,0.461]
[1641873382093,0.00757136,3117.1,3116.9,0.461]
[1641873382291,0.00113685,3117.1,3116.9,0.461]
[1641873383793,2.72913731,3117.1,3116.9,0.461]
[1641873384596,0.00113685,3117.1,3116.9,0.461]
[1641873385936,0.00113685,3117.1,3117.0,7.34973127]
[1641873386136,0.00113685,3117.1,3117.0,8.81073127]
[1641873386335,0.00113685,3117.1,3117.0,5.41073127]
[1641873386536,0.00113685,3117.1,3117.0,5.71073127]
[1641873386735,0.00113685,3117.1,3117.0,5.54942083]
[1641873386936,0.00113685,3117.1,3117.0,8.74942083]
[1641873387138,0.00113685,3117.1,3117.0,4.961]
[1641873387437,0.00113685,3117.1,3117.0,5.0025]
[1641873387838,0.00113685,3117.1,3117.0,6.0025]
[1641873388839,0.00113685,3117.1,3117.0,5.0025]
[1641873389082,0.00113685,3117.1,3117.0,3.961]
[1641873389486,0.00113685,3117.1,3117.0,4.961]
[1641873389883,0.00113685,3117.1,3117.0,5.261]
[1641873390085,0.00113685,3117.1,3117.0,3.961]
[1641873391685,0.00113685,3117.1,3117.0,3.661]
[1641873392291,0.00449006,3117.1,3117.0,3.661]
[1641873393138,0.00449006,3117.1,3117.0,7.19692566]
[1641873393336,0.00449006,3117.1,3117.0,3.961]
[1641873393536,0.00449006,3117.1,3117.0,8.59831769]
[1641873393737,0.08019,3118.0,3117.2,0.80182]
[1641873393939,0.08019,3118.0,3117.6,1.60357]
[1641873394137,4.09263329,3118.1,3117.7,0.461]
[1641873394638,2.72743608,3117.9,3117.7,0.461]
[1641873395037,2.72743608,3117.9,3117.8,5.75]
[1641873395236,1.62790991,3118.7,3117.9,5.45]
[1641873395436,1.62790991,3118.7,3118.3,0.80153]
[1641873395644,0.00454739,3118.6,3118.4,0.461]
[1641873395837,1.62790991,3118.7,3118.5,3.85782716]
[1641873396036,1.75650291,3118.9,3118.6,2.2478115]
[1641873396237,1.75650291,3118.9,3118.7,4.09221742]
[1641873396436,1.75650291,3118.9,3118.8,4.611]
[1641873396688,2.44172704,3119.1,3118.9,3.4]
[1641873396887,4.177,3119.6,3118.9,7.9048028]
[1641873397092,4.177,3119.6,3118.9,9.2048028]
[1641873397093,0.00227369,3119.0,3118.9,9.2048028]
[1641873397391,4.177,3119.6,3119.0,7.40245]
[1641873397589,4.177,3119.6,3119.3,0.8012]
[1641873397786,5.72034631,3119.9,3119.5,3.85]
[1641873397989,5.72034631,3119.9,3119.7,1.1012]
[1641873397990,4.09263329,3119.9,3119.7,1.1012]
[1641873398188,3.8545,3120.5,3119.8,3.55677466]
[1641873398386,3.59142704,3120.6,3119.8,3.55677466]
[1641873398589,0.00568424,3120.0,3119.8,3.55677466]
[1641873398987,0.00511581,3119.9,3119.8,3.55677466]
[1641873399391,0.00511581,3119.9,3119.8,4.35796466]
[1641873399586,0.00511581,3119.9,3119.8,4.81896466]
[1641873401438,0.00511581,3119.9,3119.8,1.26219]
[1641873401641,0.00511581,3119.9,3119.8,0.461]
[1641873402039,0.00511581,3119.9,3119.8,0.761]
[1641873402239,0.00511581,3119.9,3119.8,0.47545643]
[1641873403043,0.00511581,3119.9,3119.8,3.47545643]
[1641873403341,0.00511581,3119.9,3119.8,3.77545643]
[1641873404401,0.00511581,3119.9,3119.8,7.40931721]
[1641873405407,0.00511581,3119.9,3119.8,3.77545643]
[1641873406002,0.00511581,3119.9,3119.8,6.97545643]
[1641873406402,0.00511581,3119.9,3119.8,3.97545643]
[1641873407407,0.00511581,3119.9,3119.8,9.04801167]
[1641873407604,3.8208,3120.8,3119.9,5.8]
[1641873407832,3.8208,3120.8,3120.0,2.06322]
[1641873408037,0.00454739,3120.7,3120.0,2.66322]
[1641873408432,0.00397897,3120.6,3120.0,2.66322]
[1641873408733,0.00341054,3120.5,3120.0,2.66322]
[1641873408932,0.00341054,3120.5,3120.3,0.80112]
[1641873409133,0.00284212,3120.4,3119.8,3.21445643]
[1641873409334,0.00284212,3120.4,3119.8,3.67545643]
[1641873409532,0.0022737,3120.3,3119.8,3.67545643]
[1641873409933,0.00170527,3120.2,3119.8,3.67545643]
[1641873410338,0.00113685,3120.1,3119.8,3.21445643]
[1641873410737,0.00170527,3120.2,3119.8,3.21445643]
[1641873411136,0.00113685,3120.1,3119.8,3.21445643]
[1641873411586,0.00170527,3120.2,3119.8,3.21445643]
[1641873411782,0.00170527,3120.2,3119.8,3.89450848]
[1641873411984,0.00113685,3120.1,3119.8,3.21445643]
[1641873412384,0.00113685,3120.1,3120.0,0.01442116]
[1641873412385,1.08633386,3120.1,3120.0,0.01442116]
[1641873412582,0.00397897,3120.6,3120.0,0.01442116]
[1641873412782,0.00113685,3120.1,3120.0,0.01442116]
[1641873412985,0.00341054,3120.5,3120.0,0.01442116]
[1641873413188,2.70113685,3120.1,3120.0,0.01442116]
[1641873413383,2.7,3120.1,3120.0,0.01442116]
[1641873413583,2.70113685,3120.1,3120.0,0.01442116]
[1641873414183,2.70032623,3120.1,3120.0,0.01442116]
[1641873415344,3.83705478,3120.1,3120.0,0.01442116]
[1641873415544,3.84966697,3120.1,3120.0,0.01442116]
[1641873415743,3.92977697,3120.1,3120.0,0.01442116]
[1641873416540,6.6561613,3120.1,3120.0,0.01442116]
[1641873416742,6.6561613,3120.1,3119.8,3.17520534]
[1641873416743,5.1,3120.0,3119.8,3.17520534]
[1641873416941,3.93013,3119.9,3119.8,3.17520534]
[1641873417542,8.28022342,3119.9,3119.8,3.17520534]
[1641873417751,5.8,3119.8,3119.0,0.13819997]
[1641873417945,0.0128255,3119.4,3119.0,0.13819997]
[1641873418143,0.0128255,3119.4,3119.1,0.00454738]
[1641873418144,0.08014,3119.3,3119.1,0.00454738]
[1641873418743,6.37143707,3119.2,3119.1,0.00454738]
[1641873418944,12.09551596,3119.2,3119.1,0.00454738]
[1641873419387,7.80502014,3119.2,3119.1,0.00454738]
[1641873419588,12.14584988,3119.2,3119.1,0.00454738]
[1641873419786,7.80502014,3119.2,3119.1,0.00454738]
[1641873420190,4.65,3119.1,3119.0,4.735e-05]
[1641873420491,8.89374924,3119.1,3119.0,4.735e-05]
[1641873420892,8.97215228,3119.1,3119.0,4.735e-05]
[1641873421091,4.73014,3119.1,3119.0,4.735e-05]
[1641873422492,8.96910342,3119.1,3119.0,4.735e-05]
[1641873423344,10.21570342,3119.1,3119.0,4.735e-05]
[1641873424544,12.94275978,3119.1,3119.0,4.735e-05]
[1641873427189,12.94607293,3119.1,3119.0,4.735e-05]
[1641873427590,15.20247545,3119.1,3119.0,3.20004735]
[1641873427790,13.95587545,3119.1,3119.0,3.20004735]
[1641873430194,15.25587545,3119.1,3117.5,5.5025]
[1641873430449,1.9173311,3119.0,3116.9,5.95371465]
[1641873430645,6.03679106,3118.9,3117.6,0.00852636]
[1641873430842,0.08017,3118.8,3117.0,0.0119369]
[1641873431042,4.85227,3118.8,3117.0,0.0119369]
[1641873431242,1.40195504,3118.1,3117.3,0.82185233]
[1641873431641,1.40195504,3118.1,3117.4,0.0096632]
[1641873431844,1.08017,3118.6,3117.4,0.0096632]
[1641873431845,4.34711349,3118.5,3117.4,0.0096632]
[1641873432045,0.08017,3118.4,3117.4,0.0096632]
[1641873432243,0.08017,3118.5,3117.4,0.0096632]
[1641873432841,2.72767852,3118.3,3117.4,0.0096632]
[1641873433642,0.88151091,3118.1,3117.4,0.0096632]
[1641873434493,0.88151091,3118.1,3117.1,0.461]
[1641873434694,0.08017,3118.0,3117.2,0.01080005]
[1641873435997,0.96168091,3118.1,3117.2,0.01080005]
[1641873436200,1.4695516,3117.7,3117.2,0.01080005]
[1641873436998,1.4695516,3117.7,3117.2,3.21080005]
[1641873437400,0.08018,3118.0,3117.3,0.01023163]
[1641873438639,1.40786519,3118.0,3117.3,0.01023163]
[1641873441039,1.48803519,3118.0,3117.3,0.01023163]
[1641873441692,1.47953519,3118.0,3117.3,0.01023163]
[1641873442094,1.39936519,3118.0,3117.3,0.01023163]
[1641873442600,2.99936519,3118.0,3117.3,0.01023163]
[1641873442795,1.39936519,3118.0,3117.3,0.01023163]
[1641873442993,1.69936519,3118.0,3117.3,0.01023163]
[1641873443191,2.77953519,3118.0,3117.3,0.01023163]
[1641873443994,0.83700204,3117.9,3117.3,0.01023163]
[1641873444193,0.08017,3117.8,3117.3,0.01023163]
[1641873444693,1.50693763,3117.4,3117.3,0.01023163]
[1641873444893,0.08017,3117.8,3117.3,0.01023163]
[1641873446149,1.31472187,3117.6,3117.3,0.01023163]
[1641873446350,1.66249983,3117.6,3117.3,0.01023163]
[1641873450199,1.74267983,3117.6,3117.3,0.01023163]
[1641873455641,2.21936749,3117.6,3117.3,0.01023163]
[1641873456144,3.32168999,3117.6,3117.3,0.01023163]
[1641873456343,0.3,3117.5,3117.3,0.01023163]
[1641873456605,5.88018,3117.4,3117.3,0.01023163]
[1641873456789,6.18018,3117.4,3117.3,0.01023163]